lending/lending_fUSD_20250508
["ID","MTS","AMOUNT","RATE_DAILY","PERIOD"]
[360267706,1746681039941,-450.0,0.00019998,2]
[360267707,1746681039950,-493.59045279,0.00019998,2]
[360267708,1746681039960,-479.96713064,0.00019998,2]
[360267709,1746681039969,-450.0,0.00019998,2]
[360267710,1746681039979,-465.73,0.00019998,2]
[360267711,1746681039988,-467.79626541,0.00019998,2]
[360267712,1746681039998,-598.54773485,0.00019998,2]
[360267713,1746681040008,-500.0,0.00019998,2]
[360267714,1746681040019,-456.28592676,0.00019998,2]
[360267715,1746681040028,-450.0,0.00019998,2]
[360267716,1746681040038,-470.42480854,0.00019998,2]
[360267717,1746681040048,-450.0,0.00019998,2]
[360267718,1746681040058,-397.04152087,0.00019998,2]
[360267719,1746681040293,-52.95847913,0.00019998,2]
[360267720,1746681040307,-450.0,0.00019998,2]
[360267721,1746681040320,-500.0,0.00019998,2]
[360267722,1746681040329,-506.95186512,0.00019998,2]
[360267723,1746681040339,-500.0,0.00019998,2]
[360267724,1746681040350,-505.91,0.00019998,2]
[360267725,1746681040359,-560.82,0.00019998,2]
[360267726,1746681040369,-560.82,0.00019998,2]
[360267727,1746681040379,-450.0,0.00019998,2]
[360267728,1746681040389,-450.0,0.00019998,2]
[360267729,1746681040399,-500.0,0.00019998,2]
[360267730,1746681040409,-450.0,0.00019998,2]
[360267731,1746681040418,-450.0,0.00019998,2]
[360267732,1746681040428,-450.0,0.00019998,2]
[360267733,1746681040437,-479.17119916,0.00019998,2]
[360267734,1746681040447,-450.0,0.00019998,2]
[360267735,1746681040456,-470.74302488,0.00019998,2]
[360267736,1746681040466,-450.0,0.00019998,2]
[360267737,1746681040475,-450.0,0.00019998,2]
[360267738,1746681040485,-234.30429536,0.00019998,2]
[360267739,1746681040494,-460.28927401,0.00019998,2]
[360267740,1746681040504,-315.19951355,0.00019998,2]
[360267741,1746681040525,-576.03854633,0.00019998,2]
[360267742,1746681040537,-450.0,0.00019998,2]
[360267743,1746681040547,-450.0,0.00019998,2]
[360267744,1746681040557,-450.0,0.00019998,2]
[360267745,1746681040566,-450.0,0.00019998,2]
[360267746,1746681040576,-426.79380246,0.00019998,2]
[360267747,1746681040589,-23.20619754,0.00019998,2]
[360267748,1746681040598,-495.09706035,0.00019998,2]
[360267749,1746681040609,-450.0,0.00019998,2]
[360267750,1746681040619,-450.0,0.00019998,2]
[360267752,1746681040630,-514.38712642,0.00019998,2]
[360267754,1746681040640,-69.37598214,0.00019998,2]
[360267756,1746681040652,-380.62401786,0.00019998,2]
[360267758,1746681040663,-319.18666781,0.00019998,2]
[360267761,1746681040672,-429.4681921,0.00019998,2]
[360267763,1746681040684,-20.5318079,0.00019998,2]
[360267765,1746681040694,-283.68113583,0.00019998,2]
[360267767,1746681040704,-450.0,0.00019998,2]
[360267769,1746681040714,-473.67684408,0.00019998,2]
[360267771,1746681040724,-160.56037712,0.00019998,2]
[360267773,1746681040735,-450.0,0.00019998,2]
[360267775,1746681040745,-437.76024738,0.00019998,2]
[360267777,1746681040755,-450.0,0.00019998,2]
[360267779,1746681040765,-450.0,0.00019998,2]
[360267781,1746681040774,-450.0,0.00019998,2]
[360267783,1746681040784,-589.08,0.00019998,2]
[360267785,1746681040793,-500.0,0.00019998,2]
[360267787,1746681040803,-500.0,0.00019998,2]
[360267789,1746681040812,-500.0,0.00019998,2]
[360267791,1746681040822,-450.0,0.00019998,2]
[360267793,1746681040832,-450.0,0.00019998,2]
[360267795,1746681040842,-468.77820668,0.00019998,2]
[360267797,1746681040851,-454.0,0.00019998,2]
[360267799,1746681040861,-450.0,0.00019998,2]
[360267801,1746681040871,-11122.03,0.00019998,2]
[360267803,1746681040881,-450.0,0.00019998,2]
[360267805,1746681040891,-450.0,0.00019998,2]
[360267807,1746681040900,-219.78,0.00019998,2]
[360267809,1746681040910,-450.0,0.00019998,2]
[360267811,1746681040920,-450.0,0.00019998,2]
[360267813,1746681040930,-450.0,0.00019998,2]
[360267815,1746681040943,-450.0,0.00019998,2]
[360267817,1746681040953,-450.0,0.00019998,2]
[360267819,1746681040968,-256.39889452,0.00019998,2]
[360267821,1746681040978,-450.0,0.00019998,2]
[360267823,1746681040987,-450.0,0.00019998,2]
[360267825,1746681040997,-450.0,0.00019998,2]
[360267828,1746681041009,-450.0,0.00019998,2]
[360267830,1746681041019,-3070.22,0.00019998,2]
[360267832,1746681041029,-3070.22,0.00019998,2]
[360267833,1746681041038,-450.0,0.00019998,2]
[360267835,1746681041048,-450.0,0.00019998,2]
[360267838,1746681041059,-450.0,0.00019998,2]
[360267840,1746681041069,-450.0,0.00019998,2]
[360267842,1746681041078,-450.0,0.00019998,2]
[360267843,1746681041088,-235.4476638,0.00019998,2]
[360267845,1746681041098,-450.0,0.00019998,2]
[360267848,1746681041107,-450.0,0.00019998,2]
[360267850,1746681041118,-408.57229255,0.00019999,2]
[360267852,1746681041127,-500.0,0.00019999,2]
[360267854,1746681041136,-666.0,0.00019999,2]
[360267856,1746681041146,-9584.65772998,0.00019999,2]
[360267858,1746681041156,-1071.05,0.00019999,2]
[360267860,1746681041165,-1071.05,0.00019999,2]
[360267862,1746681041175,-1071.05,0.00019999,2]
[360267864,1746681041184,-1071.05,0.00019999,2]
[360267866,1746681041194,-1071.05,0.00019999,2]
[360267867,1746681041204,-1071.05,0.00019999,2]
[360267870,1746681041213,-1071.05,0.00019999,2]
[360267872,1746681041224,-1071.05,0.00019999,2]
[360267874,1746681041234,-1071.05,0.00019999,2]
[360267875,1746681041243,-1071.05,0.00019999,2]
[360267878,1746681041253,-1071.05,0.00019999,2]
[360267880,1746681041264,-1071.05,0.00019999,2]
[360267882,1746681041275,-1071.05,0.00019999,2]
[360267884,1746681041285,-1071.05,0.00019999,2]
[360267886,1746681041295,-1071.05,0.00019999,2]
[360267888,1746681041308,-1071.05,0.00019999,2]
[360267890,1746681041319,-1071.05,0.00019999,2]
[360267918,1746681041578,-1071.05,0.00019999,2]
[360267920,1746681041589,-1071.05,0.00019999,2]
[360267922,1746681041599,-1071.05,0.00019999,2]
[360267924,1746681041609,-1071.05,0.00019999,2]
[360267925,1746681041619,-1071.14,0.00019999,2]
[360267928,1746681041629,-2071.4576716,0.00019999,2]
[360267930,1746681041639,-1389.508,0.00019999,2]
[360267931,1746681041652,-169.968,0.00019999,2]
[360267933,1746681041662,-450.0,0.00019999,2]
[360267936,1746681041671,-450.0,0.00019999,2]
[360267938,1746681041681,-450.0,0.00019999,2]
[360267940,1746681041691,-249.46600418,0.00019999,2]
[360267941,1746681041701,-450.0,0.00019999,2]
[360267944,1746681041710,-450.0,0.00019999,2]
[360267945,1746681041720,-450.0,0.00019999,2]
[360267948,1746681041730,-450.0,0.00019999,2]
[360267949,1746681041739,-450.0,0.00019999,2]
[360267951,1746681041749,-450.0,0.00019999,2]
[360267954,1746681041763,-450.0,0.00019999,2]
[360267956,1746681041773,-450.0,0.00019999,2]
[360267958,1746681041782,-450.0,0.00019999,2]
[360267960,1746681041793,-450.0,0.00019999,2]
[360267962,1746681041803,-450.0,0.00019999,2]
[360267964,1746681041812,-450.0,0.00019999,2]
[360267966,1746681041822,-450.0,0.00019999,2]
[360267968,1746681041831,-450.0,0.00019999,2]
[360267970,1746681041841,-450.0,0.00019999,2]
[360267972,1746681041850,-450.0,0.00019999,2]
[360267974,1746681041860,-450.0,0.00019999,2]
[360267976,1746681041869,-450.0,0.00019999,2]
[360267978,1746681041879,-450.0,0.00019999,2]
[360267980,1746681041888,-450.0,0.00019999,2]
[360267982,1746681041897,-450.0,0.00019999,2]
[360267984,1746681041908,-450.0,0.00019999,2]
[360267986,1746681041918,-450.0,0.00019999,2]
[360267988,1746681041927,-450.0,0.00019999,2]
[360267990,1746681041937,-194.2730234,0.00019999,2]
[360267992,1746681041946,-176.400014,0.00019999,2]
[360267994,1746681041956,-151.0,0.00019999,2]
[360267996,1746681041966,-151.0,0.00019999,2]
[360267998,1746681041975,-151.0,0.00019999,2]
[360268000,1746681041985,-151.0,0.00019999,2]
[360268003,1746681041995,-159.115225,0.00019999,2]
[360268005,1746681042004,-154.692243,0.00019999,2]
[360268006,1746681042014,-151.0,0.00019999,2]
[360268009,1746681042023,-151.0,0.00019999,2]
[360268010,1746681042033,-151.0,0.00019999,2]
[360268013,1746681042044,-152.104511,0.00019999,2]
[360268015,1746681042054,-157.415594,0.00019999,2]
[360268017,1746681042063,-157.415594,0.00019999,2]
[360268019,1746681042073,-151.0,0.00019999,2]
[360268021,1746681042082,-157.133102,0.00019999,2]
[360268022,1746681042091,-154.310051,0.00019999,2]
[360268025,1746681042102,-151.0,0.00019999,2]
[360268026,1746681042114,-151.0,0.00019999,2]
[360268028,1746681042131,-500.0,0.00019999,2]
[360268031,1746681042141,-151.347839,0.00019999,2]
[360268033,1746681042151,-350.954395,0.00019999,2]
[360268035,1746681042161,-350.954395,0.00019999,2]
[360268037,1746681042171,-151.0,0.00019999,2]
[360268039,1746681042180,-151.0,0.00019999,2]
[360268041,1746681042190,-560.82,0.00019999,2]
[360268043,1746681042199,-560.82,0.00019999,2]
[360268045,1746681042209,-151.0,0.00019999,2]
[360268047,1746681042218,-560.82,0.00019999,2]
[360268049,1746681042228,-560.82,0.00019999,2]
[360268051,1746681042237,-560.82,0.00019999,2]
[360268053,1746681042246,-560.82,0.00019999,2]
[360268055,1746681042256,-560.82,0.00019999,2]
[360268057,1746681042265,-560.82,0.00019999,2]
[360268059,1746681042274,-560.82,0.00019999,2]
[360268061,1746681042285,-560.82,0.00019999,2]
[360268063,1746681042295,-560.82,0.00019999,2]
[360268065,1746681042307,-151.0,0.00019999,2]
[360268067,1746681042317,-560.82,0.00019999,2]
[360268069,1746681042326,-560.82,0.00019999,2]
[360268071,1746681042335,-560.82,0.00019999,2]
[360268073,1746681042346,-560.82,0.00019999,2]
[360268075,1746681042356,-560.82,0.00019999,2]
[360268077,1746681042365,-560.82,0.00019999,2]
[360268079,1746681042375,-560.82,0.00019999,2]
[360268082,1746681042396,-560.82,0.00019999,2]
[360268083,1746681042408,-560.82,0.00019999,2]
[360268084,1746681042419,-560.82,0.00019999,2]
[360268085,1746681042429,-561.02847091,0.00019999,2]
[360268086,1746681042439,-151.0,0.00019999,2]
[360268087,1746681042449,-151.0,0.00019999,2]
[360268088,1746681042460,-158.139124,0.00019999,2]
[360268089,1746681042470,-450.0,0.00019999,2]
[360268090,1746681042481,-450.0,0.00019999,2]
[360268091,1746681042491,-450.0,0.00019999,2]
[360268092,1746681042502,-450.0,0.00019999,2]
[360268093,1746681042512,-450.0,0.00019999,2]
[360268094,1746681042523,-450.0,0.00019999,2]
[360268095,1746681042534,-450.0,0.00019999,2]
[360268096,1746681042544,-450.0,0.00019999,2]
[360268097,1746681042554,-450.0,0.00019999,2]
[360268099,1746681042564,-450.0,0.00019999,2]
[360268101,1746681042575,-450.0,0.00019999,2]
[360268103,1746681042585,-450.0,0.00019999,2]
[360268105,1746681042595,-450.0,0.00019999,2]
[360268107,1746681042606,-534.0567782,0.00019999,2]
[360268109,1746681042616,-156.609562,0.00019999,2]
[360268111,1746681042625,-151.0,0.00019999,2]
[360268113,1746681042635,-160.662755,0.00019999,2]
[360268115,1746681042645,-151.0,0.00019999,2]
[360268117,1746681042655,-151.0,0.00019999,2]
[360268121,1746681042670,-450.0,0.00019999,2]
[360268124,1746681042680,-450.0,0.00019999,2]
[360268127,1746681042691,-450.0,0.00019999,2]
[360268131,1746681042701,-450.0,0.00019999,2]
[360268134,1746681042712,-450.0,0.00019999,2]
[360268137,1746681042722,-450.0,0.00019999,2]
[360268141,1746681042734,-450.0,0.00019999,2]
[360268143,1746681042744,-450.0,0.00019999,2]
[360268146,1746681042754,-450.0,0.00019999,2]
[360268148,1746681042764,-450.0,0.00019999,2]
[360268150,1746681042774,-450.0,0.00019999,2]
[360268152,1746681042785,-461.35060265,0.00019999,2]
[360268154,1746681042795,-450.0,0.00019999,2]
[360268156,1746681042805,-450.0,0.00019999,2]
[360268158,1746681042815,-450.0,0.00019999,2]
[360268160,1746681042824,-450.0,0.00019999,2]
[360268162,1746681042834,-450.0,0.00019999,2]
[360268164,1746681042844,-450.0,0.00019999,2]
[360268166,1746681042854,-450.0,0.00019999,2]
[360268168,1746681042866,-450.0,0.00019999,2]
[360268170,1746681042880,-450.0,0.00019999,2]
[360268172,1746681042891,-150.0,0.00019999,2]
[360268174,1746681042902,-282.31,0.00019999,2]
[360268176,1746681042911,-361.845646,0.00019999,2]
[360268179,1746681042922,-361.845646,0.00019999,2]
[360268181,1746681042932,-157.799078,0.00019999,2]
[360268183,1746681042942,-450.0,0.00019999,2]
[360268185,1746681042953,-572.89,0.00019999,2]
[360268187,1746681042962,-152.322515,0.00019999,2]
[360268189,1746681042972,-152.191207,0.00019999,2]
[360268191,1746681042982,-151.419196,0.00019999,2]
[360268193,1746681042992,-151.0,0.00019999,2]
[360268195,1746681043001,-158.227021,0.00019999,2]
[360268197,1746681043011,-151.0,0.00019999,2]
[360268199,1746681043021,-450.0,0.00019999,2]
[360268201,1746681043031,-450.0,0.00019999,2]
[360268203,1746681043040,-153.214623,0.00019999,2]
[360268205,1746681043050,-351.6,0.00019999,2]
[360268207,1746681043060,-151.0,0.00019999,2]
[360268209,1746681043070,-151.0,0.00019999,2]
[360268211,1746681043080,-450.0,0.00019999,2]
[360268213,1746681043090,-450.0,0.00019999,2]
[360268215,1746681043100,-450.0,0.00019999,2]
[360268217,1746681043114,-450.0,0.00019999,2]
[360268220,1746681043124,-450.0,0.00019999,2]
[360268222,1746681043134,-450.0,0.00019999,2]
[360268224,1746681043145,-450.0,0.00019999,2]
[360268226,1746681043157,-450.0,0.00019999,2]
[360268228,1746681043167,-450.0,0.00019999,2]
[360268230,1746681043178,-450.0,0.00019999,2]
[360268232,1746681043187,-450.0,0.00019999,2]
[360268234,1746681043197,-450.0,0.00019999,2]
[360268236,1746681043207,-233.59344722,0.00019999,2]
[360268238,1746681043217,-11122.03,0.00019999,2]
[360268240,1746681043227,-11122.03,0.00019999,2]
[360268242,1746681043236,-11122.03,0.00019999,2]
[360268244,1746681043246,-11122.03,0.00019999,2]
[360268246,1746681043255,-11122.03,0.00019999,2]
[360268249,1746681043265,-11122.03,0.00019999,2]
[360268251,1746681043275,-11122.03,0.00019999,2]
[360268254,1746681043285,-11122.03,0.00019999,2]
[360268257,1746681043296,-11122.03,0.00019999,2]
[360268261,1746681043309,-11122.03,0.00019999,2]
[360268264,1746681043319,-450.0,0.00019999,2]
[360268266,1746681043329,-11122.03,0.00019999,2]
[360268269,1746681043339,-450.0,0.00019999,2]
[360268271,1746681043348,-11122.03,0.00019999,2]
[360268273,1746681043359,-450.0,0.00019999,2]
[360268276,1746681043369,-11122.03,0.00019999,2]
[360268278,1746681043380,-450.0,0.00019999,2]
[360268282,1746681043390,-11122.03,0.00019999,2]
[360268286,1746681043401,-450.0,0.00019999,2]
[360268288,1746681043411,-11122.03,0.00019999,2]
[360268290,1746681043422,-11122.03,0.00019999,2]
[360268292,1746681043432,-11122.03,0.00019999,2]
[360268294,1746681043442,-11122.03,0.00019999,2]
[360268296,1746681043452,-5766.03087573,0.00019999,2]
[360268320,1746681043693,-2210.72110966,0.00019999,2]
[360268322,1746681043705,-3145.27801461,0.00019999,2]
[360268324,1746681043716,-6098.67621876,0.00019999,2]
[360268327,1746681043728,-337.08464997,0.00019999,2]
[360268329,1746681043739,-4686.26913127,0.00019999,2]
[360268331,1746681043749,-11122.03,0.00019999,2]
[360268333,1746681043759,-11122.1078,0.00019999,2]
[360268335,1746681043769,-273.63459619,0.00019999,2]
[360268337,1746681043778,-3070.22,0.00019999,2]
[360268339,1746681043788,-3070.22,0.00019999,2]
[360268341,1746681043797,-1971.32623999,0.00019999,2]
[360268343,1746681043809,-609.5,0.00019999,2]
[360268345,1746681043821,-489.39376001,0.00019999,2]
[360268347,1746681043831,-3070.22,0.00019999,2]
[360268349,1746681043840,-3070.22,0.00019999,2]
[360268351,1746681043850,-3070.22,0.00019999,2]
[360268353,1746681043860,-3070.22,0.00019999,2]
[360268355,1746681043870,-151.0,0.00019999,2]
[360268357,1746681043881,-3070.22,0.00019999,2]
[360268359,1746681043891,-3070.22,0.00019999,2]
[360268361,1746681043902,-3070.22,0.00019999,2]
[360268363,1746681043912,-3070.22,0.00019999,2]
[360268366,1746681043923,-450.0,0.00019999,2]
[360268368,1746681043934,-3070.22,0.00019999,2]
[360268370,1746681043943,-3070.22,0.00019999,2]
[360268372,1746681043953,-450.0,0.00019999,2]
[360268374,1746681043964,-3070.22,0.00019999,2]
[360268376,1746681043973,-222.28,0.00019999,2]
[360268378,1746681043983,-3070.22,0.00019999,2]
[360268380,1746681043992,-3070.22,0.00019999,2]
[360268381,1746681044002,-3070.22,0.00019999,2]
[360268384,1746681044020,-3070.22,0.00019999,2]
[360268398,1746681044143,-3070.22,0.00019999,2]
[360268400,1746681044153,-3070.22,0.00019999,2]
[360268401,1746681044163,-450.0,0.00019999,2]
[360268403,1746681044173,-3070.28610983,0.00019999,2]
[360268405,1746681044183,-450.0,0.00019999,2]
[360268408,1746681044193,-450.0,0.00019999,2]
[360268410,1746681044202,-450.0,0.00019999,2]
[360268411,1746681044212,-450.0,0.00019999,2]
[360268413,1746681044221,-260.515765,0.00019999,2]
[360268415,1746681044230,-408.62435288,0.00019999,2]
[360268417,1746681044240,-151.0,0.00019999,2]
[360268419,1746681044249,-151.387049,0.00019999,2]
[360268421,1746681044258,-151.0,0.00019999,2]
[360268423,1746681044269,-366.76569988,0.00019999,2]
[360268425,1746681044278,-315.74039938,0.00019999,2]
[360268427,1746681044288,-500.0,0.00019999,2]
[360268429,1746681044299,-172.64010076,0.00019999,2]
[360268431,1746681044313,-262.51093132,0.00019999,2]
[360268433,1746681044323,-500.0,0.00019999,2]
[360268435,1746681044333,-500.0,0.00019999,2]
[360268437,1746681044342,-500.0,0.00019999,2]
[360268439,1746681044353,-223.06790985,0.00019999,2]
[360268441,1746681044363,-500.0,0.00019999,2]
[360268443,1746681044372,-500.0,0.00019999,2]
[360268445,1746681044383,-500.0,0.00019999,2]
[360268447,1746681044392,-357.22436642,0.0002,2]
[360268449,1746681044402,-115584.13448315,0.0002,2]
[360268451,1746681044411,-446463.83631452,0.0002,2]
[360268454,1746681044427,-2506.67277,0.0002,2]
[360268463,1746681044505,-450.0,0.00019996,2]
[360268465,1746681044515,-265.96856234,0.00019998,2]
[360268467,1746681044525,-17613.04958924,0.0002,2]
[360268470,1746681044544,-432.06190101,0.0002,2]
[360268473,1746681044559,-2239.10260521,0.0002,2]
[360268476,1746681045735,-509.63566302,0.00019998,2]
[360268477,1746681045745,-18470.36433687,0.0002,2]
[360268478,1746681045899,-1821.03839274,0.000199,2]
[360268479,1746681045909,-38.06160726,0.0002,2]
[360268480,1746681045956,-495.79,0.0002,2]
[360268481,1746681046068,-2120.46131036,0.0002,2]
[360268482,1746681046080,-924.46481138,0.0002,2]
[360268483,1746681046297,-18995.0,0.0002,2]
[360268508,1746681058044,179.0,0.00019,2]
[360268509,1746681099563,306.08,0.00019476,2]
[360268517,1746681229350,6479.43,0.00019056,2]
[360268521,1746681490765,250.0,0.00017,2]
[360268522,1746681491844,300.0,0.00019,2]
[360268523,1746681507854,1000.0,0.00018959,2]
[360268524,1746681511690,160.65,0.00019111,2]
[360268527,1746681586823,1097.83,0.00018948,2]
[360268528,1746681596035,242.84654506,0.00018,2]
[360268529,1746681688754,451.01,0.00017027,2]
[360268530,1746681688979,451.01,0.00019291,2]
[360268531,1746681702162,500.32,0.00019,2]
[360268532,1746681726321,587.46,0.00018941,2]
[360268533,1746681942829,11060.0,0.0003,120]
[360268537,1746682047664,259.99,0.000189,2]
[360268538,1746682051890,165.3,0.00019467,2]
[360268549,1746682124607,258.05,0.00018902,2]
[360268551,1746682132858,179.22,0.00018903,2]
[360268552,1746682132935,179.22,0.0001895,2]
[360268553,1746682133149,179.22,0.00018997,2]
[360268568,1746682231911,-207.4,0.00019698,2]
[360268569,1746682231924,-200.0,0.00019699,2]
[360268570,1746682231935,-1714.5261522,0.000197,2]
[360268571,1746682231947,-880.0738478,0.000197,2]
[360268572,1746682232024,-177.9261522,0.000197,2]
[360268573,1746682232034,-1200.0,0.00019708,2]
[360268574,1746682232044,-300.0,0.00019709,2]
[360268575,1746682232055,-200.0,0.00019709,2]
[360268576,1746682232065,-210.11088911,0.00019709,2]
[360268577,1746682232076,-391.92523029,0.00019709,2]
[360268578,1746682232088,-9134.32176088,0.0001971,2]
[360268579,1746682232099,-1324.99343647,0.00019782,2]
[360268580,1746682232110,-1324.99343647,0.00019802,2]
[360268581,1746682232120,-500.0,0.00019873,2]
[360268582,1746682232131,-500.0,0.00019873,2]
[360268583,1746682232141,-3075.90954282,0.0001988,2]
[360268584,1746682232151,-500.0,0.00019886,2]
[360268585,1746682232162,-1000.0,0.00019886,2]
[360268586,1746682232173,-543.07198956,0.00019886,2]
[360268587,1746682232183,-151.0,0.00019886,2]
[360268588,1746682232194,-1000.0,0.00019889,2]
[360268589,1746682232205,-799.0,0.00019897,2]
[360268590,1746682232216,-305.09429014,0.00019898,2]
[360268591,1746682232226,-1516.98861863,0.00019898,2]
[360268592,1746682232236,-110108.0291,0.00019898,2]
[360268593,1746682232248,-1516.98861854,0.00019898,2]
[360268594,1746682232258,-1516.98861854,0.00019898,2]
[360268595,1746682232269,-1516.98861854,0.00019899,2]
[360268596,1746682232282,-1516.98861854,0.00019899,2]
[360268597,1746682232292,-702.49727155,0.00019899,2]
[360268598,1746682232303,-1516.98861854,0.00019899,2]
[360268599,1746682232314,-1516.98861854,0.00019899,2]
[360268600,1746682232323,-1516.98861854,0.000199,2]
[360268601,1746682232334,-1516.98861854,0.000199,2]
[360268602,1746682232343,-254.3668686,0.000199,2]
[360268603,1746682232353,-530.2939659,0.000199,2]
[360268604,1746682232364,-1000.0,0.000199,2]
[360268605,1746682232375,-186.29538735,0.000199,2]
[360268606,1746682232387,-1516.98861854,0.000199,2]
[360268607,1746682232398,-892.97099283,0.000199,2]
[360268608,1746682232409,-500.0,0.00019973,2]
[360268609,1746682232419,-307.15444024,0.00019973,2]
[360268610,1746682232429,-500.0,0.00019973,2]
[360268611,1746682232438,-500.0,0.00019973,2]
[360268612,1746682232448,-500.0,0.00019973,2]
[360268613,1746682232457,-500.0,0.00019973,2]
[360268614,1746682232466,-500.0,0.00019973,2]
[360268615,1746682232476,-1500.0,0.00019973,2]
[360268616,1746682232485,-486.05704346,0.00019973,2]
[360268617,1746682232495,-1018.09,0.00019979,2]
[360268618,1746682232506,-989.2502724,0.00019986,2]
[360268619,1746682232515,-2215.7566062,0.00019986,2]
[360268620,1746682232525,-30065.4107317,0.00019986,2]
[360268621,1746682232538,-1219.17424482,0.00019986,2]
[360268622,1746682232550,-58.59872408,0.00019986,2]
[360268623,1746682232561,-450.0,0.00019988,2]
[360268624,1746682232571,-450.0,0.00019988,2]
[360268625,1746682232581,-187.2370134,0.00019988,2]
[360268626,1746682232594,-262.7629866,0.00019988,2]
[360268627,1746682232604,-154.35898174,0.00019988,2]
[360268628,1746682232619,-325.46213387,0.00019988,2]
[360268629,1746682232630,-629.35990544,0.00019989,2]
[360268630,1746682232642,-388.73009456,0.00019989,2]
[360268631,1746682232652,-450.0,0.00019989,2]
[360268632,1746682232663,-1019.0,0.00019989,2]
[360268633,1746682232675,-281.97278803,0.00019989,2]
[360268634,1746682232687,-357.92821415,0.00019989,2]
[360268635,1746682232697,-450.0,0.00019989,2]
[360268636,1746682232708,-450.0,0.00019989,2]
[360268637,1746682232718,-450.0,0.00019989,2]
[360268638,1746682232727,-450.0,0.00019989,2]
[360268639,1746682232737,-450.0,0.00019989,2]
[360268640,1746682232746,-354.14837704,0.00019989,2]
[360268641,1746682232757,-169.74771321,0.00019989,2]
[360268642,1746682232771,-339.8948978,0.00019989,2]
[360268643,1746682232781,-450.0,0.00019989,2]
[360268644,1746682232791,-450.0,0.00019989,2]
[360268645,1746682232800,-450.0,0.00019989,2]
[360268646,1746682232810,-483.28680299,0.00019989,2]
[360268647,1746682232820,-450.0,0.00019989,2]
[360268648,1746682232830,-450.0,0.00019989,2]
[360268649,1746682232841,-450.0,0.00019989,2]
[360268650,1746682232851,-450.0,0.00019989,2]
[360268651,1746682232862,-450.0,0.00019989,2]
[360268652,1746682232872,-450.0,0.00019989,2]
[360268653,1746682232881,-450.0,0.00019989,2]
[360268654,1746682232891,-585.8074969,0.00019989,2]
[360268655,1746682232900,-450.0,0.00019989,2]
[360268656,1746682232910,-463.07004721,0.00019989,2]
[360268657,1746682232920,-450.0,0.00019989,2]
[360268658,1746682232930,-538.34891314,0.00019989,2]
[360268659,1746682232939,-450.0,0.00019989,2]
[360268660,1746682232949,-450.0,0.00019989,2]
[360268661,1746682232959,-215.06296061,0.00019989,2]
[360268662,1746682232968,-450.0,0.00019989,2]
[360268663,1746682232979,-450.0,0.00019989,2]
[360268664,1746682232989,-450.0,0.00019989,2]
[360268665,1746682232999,-450.0,0.00019989,2]
[360268666,1746682233008,-450.0,0.00019989,2]
[360268667,1746682233018,-450.0,0.00019989,2]
[360268668,1746682233028,-450.0,0.00019989,2]
[360268669,1746682233038,-450.0,0.00019989,2]
[360268670,1746682233049,-450.0,0.00019989,2]
[360268671,1746682233060,-500.44850649,0.00019989,2]
[360268672,1746682233070,-450.0,0.00019989,2]
[360268673,1746682233080,-560.16898867,0.00019989,2]
[360268674,1746682233091,-450.0,0.00019989,2]
[360268675,1746682233101,-450.0,0.00019989,2]